Workbook

Sheet Sheet1
A1: 附件
A2: 平罗县2024年事业单位公开招聘工作人员考试总成绩（教师岗位）
A3: 序号 | B3: 报考单位 | C3: 岗位名称 | D3: 职位代码 | E3: 招聘人数 | F3: 岗位排名 | G3: 姓名 | H3: 性别 | I3: 民族 | J3: 准考证号 | K3: 笔试成绩 | L3: 加分 | M3: 笔试总成绩 | N3: 面试成绩 | O3: 总成绩（笔试总成绩÷3×40%＋面试成绩×60%） | P3: 总成绩排名 | Q3: 备注
A4: 1 | B4: 平罗县职业教育中心 | C4: 中职历史教师 | D4: 55001 | E4: 1 | F4: 2 | G4: 马昱 | H4: 女 | I4: 回族 | J4: 4264025402427 | K4: 204.5 | L4: 2 | M4: 206.5 | N4: 87.40 | O4: =SUM(M4/3*40%)+N4*60% -> 79.97 | P4: 1
A5: 2 | B5: 平罗县职业教育中心 | C5: 中职历史教师 | D5: 55001 | F5: 1 | G5: 马彦芳 | H5: 女 | I5: 回族 | J5: 4264025402507 | K5: 221 | L5: 2 | M5: 223 | N5: 78.80 | O5: 77.01 | P5: 2
A6: 3 | B6: 平罗县职业教育中心 | C6: 中职历史教师 | D6: 55001 | F6: 3 | G6: 于海忻 | H6: 女 | I6: 回族 | J6: 4264025402430 | K6: 201 | L6: 2 | M6: 203 | N6: 81.40 | O6: 75.91 | P6: 3
A7: 4 | B7: 平罗县职业教育中心 | C7: 中职心理健康教师 | D7: 55002 | E7: 1 | F7: 3 | G7: 刘子琪 | H7: 女 | I7: 汉族 | J7: 4264025401425 | K7: 195.5 | L7: 0 | M7: 195.5 | N7: 85.50 | O7: 77.37 | P7: 1
A8: 5 | B8: 平罗县职业教育中心 | C8: 中职心理健康教师 | D8: 55002 | F8: 1 | G8: 侯肖天 | H8: 男 | I8: 汉族 | J8: 4264025402718 | K8: 201 | L8: 0 | M8: 201 | N8: 79.46 | O8: 74.48 | P8: 2
A9: 6 | B9: 平罗县职业教育中心 | C9: 中职心理健康教师 | D9: 55002 | F9: 2 | G9: 杜彩娟 | H9: 女 | I9: 汉族 | J9: 4264025401529 | K9: 199.5 | L9: 0 | M9: 199.5 | N9: 78.72 | O9: 73.83 | P9: 3
A10: 7 | B10: 平罗县职业教育中心 | C10: 中职英语教师 | D10: 55003 | E10: 2 | F10: 6 | G10: 孙熔焓 | H10: 女 | I10: 汉族 | J10: 4264025400723 | K10: 209 | L10: 0 | M10: 209 | N10: 84.60 | O10: 78.63 | P10: 1
A11: 8 | B11: 平罗县职业教育中心 | C11: 中职英语教师 | D11: 55003 | F11: 1 | G11: 周丽娟 | H11: 女 | I11: 回族 | J11: 4264025401201 | K11: 217.5 | L11: 2 | M11: 219.5 | N11: 81.60 | O11: 78.23 | P11: 2
A12: 9 | B12: 平罗县职业教育中心 | C12: 中职英语教师 | D12: 55003 | F12: 2 | G12: 杨姝莹 | H12: 女 | I12: 回族 | J12: 4264025401817 | K12: 217 | L12: 2 | M12: 219 | N12: 78.00 | O12: 76.00 | P12: 3
A13: 10 | B13: 平罗县职业教育中心 | C13: 中职英语教师 | D13: 55003 | F13: 3 | G13: 李燕雯 | H13: 女 | I13: 汉族 | J13: 4264025401822 | K13: 215 | L13: 0 | M13: 215 | N13: 78.20 | O13: 75.59 | P13: 4
A14: 11 | B14: 平罗县职业教育中心 | C14: 中职英语教师 | D14: 55003 | F14: 4 | G14: 何佳 | H14: 女 | I14: 回族 | J14: 4264025402330 | K14: 211 | L14: 2 | M14: 213 | N14: 76.80 | O14: 74.48 | P14: 5
A15: 12 | B15: 平罗县职业教育中心 | C15: 中职英语教师 | D15: 55003 | F15: 5 | G15: 甘甜 | H15: 女 | I15: 汉族 | J15: 4264025402123 | K15: 209.5 | L15: 0 | M15: 209.5 | N15: 76.20 | O15: 73.65 | P15: 6
A16: 13 | B16: 平罗县职业教育中心 | C16: 中职思想政治教师 | D16: 55004 | E16: 1 | F16: 1 | G16: 石慧敏 | H16: 女 | I16: 汉族 | J16: 4264025403007 | K16: 210.5 | L16: 0 | M16: 210.5 | N16: 87.76 | O16: 80.72 | P16: 1
A17: 14 | B17: 平罗县职业教育中心 | C17: 中职思想政治教师 | D17: 55004 | F17: 2 | G17: 张丹 | H17: 女 | I17: 汉族 | J17: 4264025401007 | K17: 203 | L17: 0 | M17: 203 | N17: 80.46 | O17: 75.34 | P17: 2
A18: 15 | B18: 平罗县职业教育中心 | C18: 中职思想政治教师 | D18: 55004 | F18: 3 | G18: 黄媛媛 | H18: 女 | I18: 汉族 | J18: 4264025402125 | K18: 199.5 | L18: 0 | M18: 199.5 | N18: 缺考 | O18: =SUM(M18/3*40%) -> 26.60 | P18: 3
A19: 16 | B19: 平罗县职业教育中心 | C19: 中职养生保健专业教师 | D19: 55005 | E19: 1 | F19: 2 | G19: 赵敏 | H19: 女 | I19: 汉族 | J19: 4264025402322 | K19: 178 | L19: 0 | M19: 178 | N19: 88.80 | O19: =SUM(M19/3*40%)+N19*60% -> 77.01 | P19: 1
A20: 17 | B20: 平罗县职业教育中心 | C20: 中职养生保健专业教师 | D20: 55005 | F20: 3 | G20: 李茂鹏 | H20: 男 | I20: 回族 | J20: 4264025400810 | K20: 161.5 | L20: 2 | M20: 163.5 | N20: 81.70 | O20: 70.82 | P20: 2
A21: 18 | B21: 平罗县职业教育中心 | C21: 中职养生保健专业教师 | D21: 55005 | F21: 1 | G21: 袁雪 | H21: 女 | I21: 汉族 | J21: 4264025401222 | K21: 179 | L21: 0 | M21: 179 | N21: 73.66 | O21: 68.06 | P21: 3
A22: 19 | B22: 平罗县职业教育中心 | C22: 中职护理专业教师1 | D22: 55006 | E22: 2 | F22: 6 | G22: 蔡翔 | H22: 男 | I22: 汉族 | J22: 4264025402410 | K22: 193.5 | L22: 0 | M22: 193.5 | N22: 93.64 | O22: 81.98 | P22: 1
A23: 20 | B23: 平罗县职业教育中心 | C23: 中职护理专业教师1 | D23: 55006 | F23: 1 | G23: 唐嘉阳 | H23: 女 | I23: 汉族 | J23: 4264025403027 | K23: 207 | L23: 0 | M23: 207 | N23: 87.90 | O23: 80.34 | P23: 2
A24: 21 | B24: 平罗县职业教育中心 | C24: 中职护理专业教师1 | D24: 55006 | F24: 1 | G24: 计亚妮 | H24: 女 | I24: 汉族 | J24: 4264025400408 | K24: 207 | L24: 0 | M24: 207 | N24: 85.00 | O24: 78.60 | P24: 3
A25: 22 | B25: 平罗县职业教育中心 | C25: 中职护理专业教师1 | D25: 55006 | F25: 3 | G25: 王佳 | H25: 女 | I25: 汉族 | J25: 4264025400409 | K25: 200 | L25: 0 | M25: 200 | N25: 85.76 | O25: 78.12 | P25: 4
A26: 23 | B26: 平罗县职业教育中心 | C26: 中职护理专业教师1 | D26: 55006 | F26: 5 | G26: 李国庆 | H26: 男 | I26: 汉族 | J26: 4264025400505 | K26: 195 | L26: 0 | M26: 195 | N26: 84.50 | O26: 76.70 | P26: 5
A27: 24 | B27: 平罗县职业教育中心 | C27: 中职护理专业教师1 | D27: 55006 | F27: 4 | G27: 段敦乐 | H27: 女 | I27: 汉族 | J27: 4264025403011 | K27: 199.5 | L27: 0 | M27: 199.5 | N27: 77.98 | O27: 73.39 | P27: 6
A28: 25 | B28: 平罗县职业教育中心 | C28: 中职护理专业教师2 | D28: 55007 | E28: 3 | F28: 5 | G28: 马静 | H28: 女 | I28: 回族 | J28: 4264025403005 | K28: 181 | L28: 2 | M28: 183 | N28: 92.84 | O28: 80.10 | P28: 1
A29: 26 | B29: 平罗县职业教育中心 | C29: 中职护理专业教师2 | D29: 55007 | F29: 1 | G29: 刘俊燕 | H29: 女 | I29: 回族 | J29: 4264025400726 | K29: 195.5 | L29: 2 | M29: 197.5 | N29: 87.12 | O29: 78.61 | P29: 2
A30: 27 | B30: 平罗县职业教育中心 | C30: 中职护理专业教师2 | D30: 55007 | F30: 8 | G30: 张康强 | H30: 男 | I30: 汉族 | J30: 4264025501514 | K30: 176 | L30: 0 | M30: 176 | N30: 91.10 | O30: 78.13 | P30: 3
A31: 28 | B31: 平罗县职业教育中心 | C31: 中职护理专业教师2 | D31: 55007 | F31: 2 | G31: 陈盼盼 | H31: 女 | I31: 汉族 | J31: 4264025400910 | K31: 196 | L31: 0 | M31: 196 | N31: 85.00 | O31: 77.13 | P31: 4
A32: 29 | B32: 平罗县职业教育中心 | C32: 中职护理专业教师2 | D32: 55007 | F32: 4 | G32: 桑婷 | H32: 女 | I32: 汉族 | J32: 4264025402820 | K32: 187 | L32: 0 | M32: 187 | N32: 82.66 | O32: 74.53 | P32: 5
A33: 30 | B33: 平罗县职业教育中心 | C33: 中职护理专业教师2 | D33: 55007 | F33: 9 | G33: 史文萱 | H33: 女 | I33: 汉族 | J33: 4264025402221 | K33: 175 | L33: 0 | M33: 175 | N33: 85.00 | O33: 74.33 | P33: 6
A34: 31 | B34: 平罗县职业教育中心 | C34: 中职护理专业教师2 | D34: 55007 | F34: 7 | G34: 赵薇 | H34: 女 | I34: 汉族 | J34: 4264025500904 | K34: 181 | L34: 0 | M34: 181 | N34: 83.32 | O34: 74.13 | P34: 7
A35: 32 | B35: 平罗县职业教育中心 | C35: 中职护理专业教师2 | D35: 55007 | F35: 5 | G35: 吕雯雨 | H35: 女 | I35: 汉族 | J35: 4264025400420 | K35: 183 | L35: 0 | M35: 183 | N35: 82.66 | O35: 74.00 | P35: 8
A36: 33 | B36: 平罗县职业教育中心 | C36: 中职护理专业教师2 | D36: 55007 | F36: 3 | G36: 陈玉臻 | H36: 女 | I36: 汉族 | J36: 4264025402801 | K36: 188.5 | L36: 0 | M36: 188.5 | N36: 79.58 | O36: 72.88 | P36: 9
A37: 34 | B37: 平罗县职业教育中心 | C37: 中职康复专业教师 | D37: 55008 | E37: 1 | F37: 1 | G37: 马蓝 | H37: 女 | I37: 汉族 | J37: 4264025500721 | K37: 178 | L37: 0 | M37: 178 | N37: 86.90 | O37: 75.87 | P37: 1
A38: 35 | B38: 平罗县职业教育中心 | C38: 中职康复专业教师 | D38: 55008 | F38: 3 | G38: 王芮 | H38: 女 | I38: 汉族 | J38: 4264025500829 | K38: 133 | L38: 0 | M38: 133 | N38: 81.54 | O38: 66.66 | P38: 2
A39: 36 | B39: 平罗县职业教育中心 | C39: 中职康复专业教师 | D39: 55008 | F39: 4 | G39: 刘上闻 | H39: 女 | I39: 汉族 | J39: 4264025500118 | K39: 119.5 | L39: 0 | M39: 119.5 | N39: 68.50 | O39: 57.03 | P39: 3
A40: 37 | B40: 平罗县职业教育中心 | C40: 中职医学基础教师 | D40: 55009 | E40: 1 | F40: 1 | G40: 刘祎璠 | H40: 女 | I40: 汉族 | J40: 4264025500121 | K40: 203.5 | L40: 0 | M40: 203.5 | N40: 87.24 | O40: 79.48 | P40: 1
A41: 38 | B41: 平罗县职业教育中心 | C41: 中职医学基础教师 | D41: 55009 | F41: 3 | G41: 贺晨蓓 | H41: 女 | I41: 汉族 | J41: 4264025500816 | K41: 182 | L41: 0 | M41: 182 | N41: 88.80 | O41: 77.55 | P41: 2
A42: 39 | B42: 平罗县职业教育中心 | C42: 中职医学基础教师 | D42: 55009 | F42: 2 | G42: 马妮 | H42: 女 | I42: 回族 | J42: 4264025501210 | K42: 188.5 | L42: 2 | M42: 190.5 | N42: 85.20 | O42: 76.52 | P42: 3
A43: 40 | B43: 平罗中学 | C43: 高中语文教师2 | D43: 55011 | E43: 1 | F43: 1 | G43: 张悦 | H43: 女 | I43: 汉族 | J43: 4264025500309 | K43: 209.5 | L43: 0 | M43: 209.5 | N43: 83.34 | O43: 77.94 | P43: 1
A44: 41 | B44: 平罗中学 | C44: 高中语文教师2 | D44: 55011 | F44: 3 | G44: 海宇文 | H44: 女 | I44: 满族 | J44: 4264025501207 | K44: 179 | L44: 2 | M44: 181 | N44: 88.70 | O44: 77.35 | P44: 2
A45: 42 | B45: 平罗中学 | C45: 高中语文教师2 | D45: 55011 | F45: 2 | G45: 杜迎 | H45: 女 | I45: 汉族 | J45: 4264025501101 | K45: 188 | L45: 0 | M45: 188 | N45: 77.12 | O45: 71.34 | P45: 3
A46: 43 | B46: 平罗中学 | C46: 高中政治教师 | D46: 55012 | E46: 1 | F46: 1 | G46: 马献花 | H46: 女 | I46: 回族 | J46: 4264025501412 | K46: 207 | L46: 2 | M46: 209 | N46: 83.44 | O46: 77.93 | P46: 1
A47: 44 | B47: 平罗中学 | C47: 高中政治教师 | D47: 55012 | F47: 3 | G47: 白家琪 | H47: 女 | I47: 汉族 | J47: 4264025500204 | K47: 191.5 | L47: 0 | M47: 191.5 | N47: 82.30 | O47: 74.91 | P47: 2
A48: 45 | B48: 平罗中学 | C48: 高中政治教师 | D48: 55012 | F48: 2 | G48: 李英 | H48: 女 | I48: 回族 | J48: 4264025501013 | K48: 196.5 | L48: 2 | M48: 198.5 | N48: 79.60 | O48: 74.23 | P48: 3
A49: 46 | B49: 平罗中学 | C49: 高中地理教师1 | D49: 55013 | E49: 1 | F49: 1 | G49: 刘旭 | H49: 男 | I49: 汉族 | J49: 4264025501328 | K49: 212 | L49: 0 | M49: 212 | N49: 83.80 | O49: 78.55 | P49: 1
A50: 47 | B50: 平罗中学 | C50: 高中地理教师1 | D50: 55013 | F50: 2 | G50: 黑伏龙 | H50: 男 | I50: 回族 | J50: 4264025500720 | K50: 164.5 | L50: 2 | M50: 166.5 | N50: 缺考 | O50: =SUM(M50/3*40%) -> 22.20 | P50: 2
A51: 48 | B51: 平罗中学 | C51: 高中地理教师2 | D51: 55014 | E51: 1 | F51: 1 | G51: 马佳珠 | H51: 女 | I51: 汉族 | J51: 4264025500425 | K51: 211.5 | L51: 0 | M51: 211.5 | N51: 81.40 | O51: =SUM(M51/3*40%)+N51*60% -> 77.04 | P51: 1
A52: 49 | B52: 平罗中学 | C52: 高中地理教师2 | D52: 55014 | F52: 2 | G52: 黄瀚升 | H52: 女 | I52: 汉族 | J52: 4264025500420 | K52: 186.5 | L52: 0 | M52: 186.5 | N52: 82.40 | O52: =SUM(M52/3*40%)+N52*60% -> 74.31 | P52: 2
A53: 50 | B53: 平罗中学 | C53: 高中地理教师2 | D53: 55014 | F53: 3 | G53: 马玉娟 | H53: 女 | I53: 回族 | J53: 4264025501007 | K53: 174.5 | L53: 2 | M53: 176.5 | N53: 80.80 | O53: =SUM(M53/3*40%)+N53*60% -> 72.01 | P53: 3
A54: 51 | B54: 平罗中学 | C54: 高中物理教师1 | D54: 55015 | E54: 1 | F54: 2 | G54: 王琪 | H54: 男 | I54: 汉族 | J54: 4264025501312 | K54: 165 | L54: 0 | M54: 165 | N54: 85.78 | O54: =SUM(M54/3*40%)+N54*60% -> 73.47 | P54: 1
A55: 52 | B55: 平罗中学 | C55: 高中物理教师1 | D55: 55015 | F55: 1 | G55: 马浩男 | H55: 男 | I55: 回族 | J55: 4264025500115 | K55: 176 | L55: 2 | M55: 178 | N55: 缺考 | O55: =SUM(M55/3*40%) -> 23.73 | P55: 2
A56: 53 | B56: 平罗中学 | C56: 高中物理教师2 | D56: 55016 | E56: 1 | F56: 1 | G56: 王书凝 | H56: 女 | I56: 回族 | J56: 4264025500426 | K56: 208.5 | L56: 2 | M56: 210.5 | N56: 80.04 | O56: =SUM(M56/3*40%)+N56*60% -> 76.09 | P56: 1
A57: 54 | B57: 平罗中学 | C57: 高中物理教师2 | D57: 55016 | F57: 2 | G57: 罗萌萌 | H57: 女 | I57: 汉族 | J57: 4264025500306 | K57: 160 | L57: 0 | M57: 160 | N57: 75.42 | O57: 66.59 | P57: 2
A58: 55 | B58: 平罗中学 | C58: 高中体育教师 | D58: 55017 | E58: 1 | F58: 1 | G58: 马翠钰 | H58: 女 | I58: 回族 | J58: 4264025500917 | K58: 164 | L58: 2 | M58: 166 | N58: 82.06 | O58: 71.37 | P58: 1
A59: 56 | B59: 平罗中学 | C59: 高中心理学教师 | D59: 55018 | E59: 1 | F59: 2 | G59: 苏萍 | H59: 女 | I59: 回族 | J59: 4264025501509 | K59: 193 | L59: 2 | M59: 195 | N59: 81.94 | O59: 75.16 | P59: 1
A60: 57 | B60: 平罗中学 | C60: 高中心理学教师 | D60: 55018 | F60: 3 | G60: 丁蕊 | H60: 女 | I60: 回族 | J60: 4264025501023 | K60: 191.5 | L60: 2 | M60: 193.5 | N60: 77.42 | O60: 72.25 | P60: 2
A61: 58 | B61: 平罗中学 | C61: 高中心理学教师 | D61: 55018 | F61: 1 | G61: 李玲玲 | H61: 女 | I61: 回族 | J61: 4264025501722 | K61: 198 | L61: 2 | M61: 200 | N61: 75.42 | O61: 71.92 | P61: 3
A62: 59 | B62: 平罗中学 | C62: 高中英语教师 | D62: 55019 | E62: 2 | F62: 4 | G62: 张鲜丽 | H62: 女 | I62: 汉族 | J62: 4264025500905 | K62: 194.5 | L62: 0 | M62: 194.5 | N62: 81.40 | O62: 74.77 | P62: 1
A63: 60 | B63: 平罗中学 | C63: 高中英语教师 | D63: 55019 | F63: 1 | G63: 姚璐 | H63: 女 | I63: 汉族 | J63: 4264025501508 | K63: 214 | L63: 0 | M63: 214 | N63: 74.00 | O63: 72.93 | P63: 2
A64: 61 | B64: 平罗中学 | C64: 高中英语教师 | D64: 55019 | F64: 6 | G64: 马文艳 | H64: 女 | I64: 汉族 | J64: 4264025500422 | K64: 189 | L64: 0 | M64: 189 | N64: 78.60 | O64: 72.36 | P64: 3
A65: 62 | B65: 平罗中学 | C65: 高中英语教师 | D65: 55019 | F65: 2 | G65: 许晓丽 | H65: 女 | I65: 汉族 | J65: 4264025501316 | K65: 207.5 | L65: 0 | M65: 207.5 | N65: 73.00 | O65: 71.47 | P65: 4
A66: 63 | B66: 平罗中学 | C66: 高中英语教师 | D66: 55019 | F66: 5 | G66: 马晶晶 | H66: 女 | I66: 回族 | J66: 4264025401205 | K66: 192 | L66: 2 | M66: 194 | N66: 75.60 | O66: 71.23 | P66: 5
A67: 64 | B67: 平罗中学 | C67: 高中英语教师 | D67: 55019 | F67: 3 | G67: 陈玮玉 | H67: 女 | I67: 汉族 | J67: 4264025500317 | K67: 202 | L67: 0 | M67: 202 | N67: 72.40 | O67: 70.37 | P67: 6
A68: 65 | B68: 平罗县第二中学 | C68: 高中语文教师 | D68: 55020 | E68: 1 | F68: 1 | G68: 马佳丽 | H68: 女 | I68: 回族 | J68: 4264025501308 | K68: 188 | L68: 2 | M68: 190 | N68: 86.50 | O68: 77.23 | P68: 1
A69: 66 | B69: 平罗县第二中学 | C69: 高中语文教师 | D69: 55020 | F69: 2 | G69: 李文会 | H69: 女 | I69: 汉族 | J69: 4264025500408 | K69: 184.5 | L69: 0 | M69: 184.5 | N69: 83.22 | O69: 74.53 | P69: 2
A70: 67 | B70: 平罗县第二中学 | C70: 高中语文教师 | D70: 55020 | F70: 3 | G70: 王慧莲 | H70: 女 | I70: 汉族 | J70: 4264025501422 | K70: 174 | L70: 0 | M70: 174 | N70: 79.58 | O70: 70.95 | P70: 3
A71: 68 | B71: 平罗县第二中学 | C71: 高中数学教师 | D71: 55021 | E71: 2 | F71: 1 | G71: 李梦瑶 | H71: 女 | I71: 汉族 | J71: 4264025500301 | K71: 207 | L71: 0 | M71: 207 | N71: 81.16 | O71: 76.30 | P71: 1
A72: 69 | B72: 平罗县第二中学 | C72: 高中数学教师 | D72: 55021 | F72: 2 | G72: 顾佳怡 | H72: 女 | I72: 汉族 | J72: 4264025501607 | K72: 191.5 | L72: 0 | M72: 191.5 | N72: 81.52 | O72: 74.45 | P72: 2
A73: 70 | B73: 平罗县第二中学 | C73: 高中数学教师 | D73: 55021 | F73: 3 | G73: 郭佳豪 | H73: 男 | I73: 汉族 | J73: 4264025500809 | K73: 182.5 | L73: 0 | M73: 182.5 | N73: 79.92 | O73: 72.29 | P73: 3
A74: 71 | B74: 平罗县第二中学 | C74: 高中数学教师 | D74: 55021 | F74: 4 | G74: 李婷 | H74: 女 | I74: 回族 | J74: 4264025500625 | K74: 174 | L74: 2 | M74: 176 | N74: 78.12 | O74: 70.34 | P74: 4
A75: 72 | B75: 平罗县第二中学 | C75: 高中数学教师 | D75: 55021 | F75: 5 | G75: 苏昭昭 | H75: 男 | I75: 汉族 | J75: 4264025500412 | K75: 153 | L75: 0 | M75: 153 | N75: 81.12 | O75: 69.07 | P75: 5
A76: 73 | B76: 平罗县第二中学 | C76: 高中数学教师 | D76: 55021 | F76: 6 | G76: 杨晨 | H76: 女 | I76: 汉族 | J76: 4264025500927 | K76: 152.5 | L76: 0 | M76: 152.5 | N76: 75.92 | O76: 65.89 | P76: 6
A77: 74 | B77: 平罗县第二中学 | C77: 高中英语教师 | D77: 55022 | E77: 3 | F77: 2 | G77: 赵紫怡 | H77: 女 | I77: 汉族 | J77: 4264025500518 | K77: 203.5 | L77: 0 | M77: 203.5 | N77: 80.60 | O77: 75.49 | P77: 1
A78: 75 | B78: 平罗县第二中学 | C78: 高中英语教师 | D78: 55022 | F78: 5 | G78: 马珑 | H78: 女 | I78: 回族 | J78: 4264025500106 | K78: 193.5 | L78: 2 | M78: 195.5 | N78: 82.00 | O78: 75.27 | P78: 2
A79: 76 | B79: 平罗县第二中学 | C79: 高中英语教师 | D79: 55022 | F79: 1 | G79: 罗雅兴 | H79: 女 | I79: 汉族 | J79: 4264025500902 | K79: 216 | L79: 0 | M79: 216 | N79: 77.40 | O79: 75.24 | P79: 3
A80: 77 | B80: 平罗县第二中学 | C80: 高中英语教师 | D80: 55022 | F80: 3 | G80: 李蕊文 | H80: 女 | I80: 汉族 | J80: 4264025501408 | K80: 201 | L80: 0 | M80: 201 | N80: 79.20 | O80: 74.32 | P80: 4
A81: 78 | B81: 平罗县第二中学 | C81: 高中英语教师 | D81: 55022 | F81: 7 | G81: 王琛 | H81: 女 | I81: 汉族 | J81: 4264025500207 | K81: 191.5 | L81: 0 | M81: 191.5 | N81: 80.60 | O81: 73.89 | P81: 5
A82: 79 | B82: 平罗县第二中学 | C82: 高中英语教师 | D82: 55022 | F82: 4 | G82: 尹悦 | H82: 女 | I82: 汉族 | J82: 4264025500210 | K82: 200.5 | L82: 0 | M82: 200.5 | N82: 74.60 | O82: 71.49 | P82: 6
A83: 80 | B83: 平罗县第二中学 | C83: 高中英语教师 | D83: 55022 | F83: 6 | G83: 杨毅菲 | H83: 女 | I83: 回族 | J83: 4264025500123 | K83: 193 | L83: 2 | M83: 195 | N83: 75.40 | O83: 71.24 | P83: 7
A84: 81 | B84: 平罗县第二中学 | C84: 高中英语教师 | D84: 55022 | F84: 8 | G84: 梁洁 | H84: 女 | I84: 汉族 | J84: 4264025500503 | K84: 184 | L84: 0 | M84: 184 | N84: 69.20 | O84: 66.05 | P84: 8
A85: 82 | B85: 平罗县第二中学 | C85: 高中英语教师 | D85: 55022 | F85: 9 | G85: 杨琳 | H85: 女 | I85: 汉族 | J85: 4264025500819 | K85: 183.5 | L85: 0 | M85: 183.5 | N85: 缺考 | O85: =SUM(M85/3*40%) -> 24.47 | P85: 9
A86: 83 | B86: 平罗县第二中学 | C86: 高中政治教师 | D86: 55023 | E86: 3 | F86: 3 | G86: 雍静 | H86: 女 | I86: 汉族 | J86: 4264025501209 | K86: 209 | L86: 0 | M86: 209 | N86: 86.96 | O86: =SUM(M86/3*40%)+N86*60% -> 80.04 | P86: 1
A87: 84 | B87: 平罗县第二中学 | C87: 高中政治教师 | D87: 55023 | F87: 2 | G87: 李欢 | H87: 女 | I87: 汉族 | J87: 4264025500818 | K87: 213.5 | L87: 0 | M87: 213.5 | N87: 84.96 | O87: 79.44 | P87: 2
A88: 85 | B88: 平罗县第二中学 | C88: 高中政治教师 | D88: 55023 | F88: 6 | G88: 丁佳 | H88: 女 | I88: 回族 | J88: 4264025501522 | K88: 201 | L88: 2 | M88: 203 | N88: 86.32 | O88: 78.86 | P88: 3
A89: 86 | B89: 平罗县第二中学 | C89: 高中政治教师 | D89: 55023 | F89: 5 | G89: 马晓静 | H89: 女 | I89: 回族 | J89: 4264025501201 | K89: 202 | L89: 2 | M89: 204 | N89: 84.86 | O89: 78.12 | P89: 4
A90: 87 | B90: 平罗县第二中学 | C90: 高中政治教师 | D90: 55023 | F90: 7 | G90: 王亚茹 | H90: 女 | I90: 回族 | J90: 4264025500724 | K90: 196.5 | L90: 2 | M90: 198.5 | N90: 84.92 | O90: 77.42 | P90: 5
A91: 88 | B91: 平罗县第二中学 | C91: 高中政治教师 | D91: 55023 | F91: 4 | G91: 王玉玲 | H91: 女 | I91: 回族 | J91: 4264025500403 | K91: 204.5 | L91: 2 | M91: 206.5 | N91: 82.30 | O91: 76.91 | P91: 6
A92: 89 | B92: 平罗县第二中学 | C92: 高中政治教师 | D92: 55023 | F92: 9 | G92: 王新艳 | H92: 女 | I92: 回族 | J92: 4264025500310 | K92: 188.5 | L92: 2 | M92: 190.5 | N92: 77.32 | O92: 71.79 | P92: 7
A93: 90 | B93: 平罗县第二中学 | C93: 高中政治教师 | D93: 55023 | F93: 1 | G93: 张佳琦 | H93: 女 | I93: 汉族 | J93: 4264025501018 | K93: 214 | L93: 0 | M93: 214 | N93: 缺考 | O93: =SUM(M93/3*40%) -> 28.53 | P93: 8
A94: 91 | B94: 平罗县第二中学 | C94: 高中政治教师 | D94: 55023 | F94: 8 | G94: 石红宇 | H94: 女 | I94: 汉族 | J94: 4264025500104 | K94: 197.5 | L94: 0 | M94: 197.5 | N94: 缺考 | O94: =SUM(M94/3*40%) -> 26.33 | P94: 9
A95: 92 | B95: 平罗县第二中学 | C95: 高中历史教师 | D95: 55024 | E95: 3 | F95: 4 | G95: 杨安禾 | H95: 女 | I95: 回族 | J95: 4264025500624 | K95: 199.5 | L95: 2 | M95: 201.5 | N95: 85.80 | O95: =SUM(M95/3*40%)+N95*60% -> 78.35 | P95: 1
A96: 93 | B96: 平罗县第二中学 | C96: 高中历史教师 | D96: 55024 | F96: 3 | G96: 李瑞 | H96: 女 | I96: 汉族 | J96: 4264025501017 | K96: 210.5 | L96: 0 | M96: 210.5 | N96: 82.60 | O96: 77.63 | P96: 2
A97: 94 | B97: 平罗县第二中学 | C97: 高中历史教师 | D97: 55024 | F97: 1 | G97: 海晓燕 | H97: 女 | I97: 回族 | J97: 4264025501424 | K97: 211.5 | L97: 2 | M97: 213.5 | N97: 81.60 | O97: 77.43 | P97: 3
A98: 95 | B98: 平罗县第二中学 | C98: 高中历史教师 | D98: 55024 | F98: 2 | G98: 杨玉洁 | H98: 女 | I98: 汉族 | J98: 4264025500815 | K98: 212 | L98: 0 | M98: 212 | N98: 80.60 | O98: 76.63 | P98: 4
A99: 96 | B99: 平罗县第二中学 | C99: 高中历史教师 | D99: 55024 | F99: 5 | G99: 汪紫薇 | H99: 女 | I99: 汉族 | J99: 4264025500125 | K99: 200 | L99: 0 | M99: 200 | N99: 81.80 | O99: 75.75 | P99: 5
A100: 97 | B100: 平罗县第二中学 | C100: 高中历史教师 | D100: 55024 | F100: 9 | G100: 季国飞 | H100: 男 | I100: 汉族 | J100: 4264025501721 | K100: 189 | L100: 0 | M100: 189 | N100: 80.80 | O100: 73.68 | P100: 6
A101: 98 | B101: 平罗县第二中学 | C101: 高中历史教师 | D101: 55024 | F101: 7 | G101: 杨江辉 | H101: 男 | I101: 汉族 | J101: 4264025500928 | K101: 190.5 | L101: 0 | M101: 190.5 | N101: 78.20 | O101: 72.32 | P101: 7
A102: 99 | B102: 平罗县第二中学 | C102: 高中历史教师 | D102: 55024 | F102: 6 | G102: 郭向军 | H102: 男 | I102: 汉族 | J102: 4264025500915 | K102: 196.5 | L102: 0 | M102: 196.5 | N102: 75.40 | O102: 71.44 | P102: 8
A103: 100 | B103: 平罗县第二中学 | C103: 高中历史教师 | D103: 55024 | F103: 8 | G103: 徐聪 | H103: 女 | I103: 汉族 | J103: 4264025500413 | K103: 189.5 | L103: 0 | M103: 189.5 | N103: 缺考 | O103: =SUM(M103/3*40%) -> 25.27 | P103: 9
A104: 101 | B104: 平罗县第二中学 | C104: 高中化学教师 | D104: 55025 | E104: 1 | F104: 2 | G104: 徐瑞玲 | H104: 女 | I104: 汉族 | J104: 4264025500130 | K104: 193.5 | L104: 0 | M104: 193.5 | N104: 83.76 | O104: =SUM(M104/3*40%)+N104*60% -> 76.06 | P104: 1
A105: 102 | B105: 平罗县第二中学 | C105: 高中化学教师 | D105: 55025 | F105: 1 | G105: 丁小玲 | H105: 女 | I105: 回族 | J105: 4264025500921 | K105: 200 | L105: 2 | M105: 202 | N105: 80.14 | O105: 75.02 | P105: 2
A106: 103 | B106: 平罗县第二中学 | C106: 高中化学教师 | D106: 55025 | F106: 3 | G106: 王佳雪 | H106: 女 | I106: 汉族 | J106: 4264025501711 | K106: 192.5 | L106: 0 | M106: 192.5 | N106: 79.42 | O106: 73.32 | P106: 3
A107: 104 | B107: 平罗县第三中学 | C107: 初中道德与法治教师 | D107: 55026 | E107: 1 | F107: 1 | G107: 鲁璐 | H107: 女 | I107: 汉族 | J107: 4264025500623 | K107: 213 | L107: 0 | M107: 213 | N107: 86.94 | O107: 80.56 | P107: 1
A108: 105 | B108: 平罗县第三中学 | C108: 初中道德与法治教师 | D108: 55026 | F108: 3 | G108: 李京奥 | H108: 女 | I108: 汉族 | J108: 4264025501220 | K108: 182 | L108: 0 | M108: 182 | N108: 75.42 | O108: 69.52 | P108: 2
A109: 106 | B109: 平罗县第三中学 | C109: 初中道德与法治教师 | D109: 55026 | F109: 2 | G109: 梅薇 | H109: 女 | I109: 汉族 | J109: 4264025500111 | K109: 182.5 | L109: 0 | M109: 182.5 | N109: 67.60 | O109: 64.89 | P109: 3
A110: 107 | B110: 平罗县第四中学 | C110: 初中物理教师 | D110: 55027 | E110: 1 | F110: 1 | G110: 马亚梅 | H110: 女 | I110: 回族 | J110: 4264025500406 | K110: 178.5 | L110: 2 | M110: 180.5 | N110: 81.22 | O110: 72.80 | P110: 1
A111: 108 | B111: 平罗县第四中学 | C111: 初中物理教师 | D111: 55027 | F111: 3 | G111: 张红娟 | H111: 女 | I111: 汉族 | J111: 4264025500202 | K111: 167 | L111: 0 | M111: 167 | N111: 71.24 | O111: 65.01 | P111: 2
A112: 109 | B112: 平罗县第四中学 | C112: 初中物理教师 | D112: 55027 | F112: 4 | G112: 胡浩楠 | H112: 女 | I112: 汉族 | J112: 4264025500612 | K112: 153 | L112: 0 | M112: 153 | N112: 缺考 | O112: =SUM(M112/3*40%) -> 20.40 | P112: 3
A113: 110 | B113: 平罗县第七中学 | C113: 初中物理教师 | D113: 55028 | E113: 1 | F113: 2 | G113: 齐凯强 | H113: 男 | I113: 汉族 | J113: 4264025501303 | K113: 176 | L113: 0 | M113: 176 | N113: 81.26 | O113: =SUM(M113/3*40%)+N113*60% -> 72.22 | P113: 1
A114: 111 | B114: 平罗县第七中学 | C114: 初中物理教师 | D114: 55028 | F114: 1 | G114: 马永礼 | H114: 男 | I114: 回族 | J114: 4264025500812 | K114: 186 | L114: 2 | M114: 188 | N114: 76.32 | O114: 70.86 | P114: 2
A115: 112 | B115: 平罗县第七中学 | C115: 初中物理教师 | D115: 55028 | F115: 3 | G115: 马燕 | H115: 女 | I115: 回族 | J115: 4264025501714 | K115: 171.5 | L115: 2 | M115: 173.5 | N115: 68.36 | O115: 64.15 | P115: 3
A116: 113 | B116: 平罗县教育体育局所属初中学校 | C116: 初中语文教师 | D116: 55029 | E116: 7 | F116: 2 | G116: 何思睿 | H116: 女 | I116: 汉族 | J116: 4264025501029 | K116: 219 | L116: 0 | M116: 219 | N116: 85.34 | O116: 80.40 | P116: 1
A117: 114 | B117: 平罗县教育体育局所属初中学校 | C117: 初中语文教师 | D117: 55029 | F117: 4 | G117: 代荟君 | H117: 女 | I117: 汉族 | J117: 4264025500114 | K117: 210.5 | L117: 0 | M117: 210.5 | N117: 84.22 | O117: 78.60 | P117: 2
A118: 115 | B118: 平罗县教育体育局所属初中学校 | C118: 初中语文教师 | D118: 55029 | F118: 5 | G118: 马灵玉 | H118: 女 | I118: 回族 | J118: 4264025501629 | K118: 200.5 | L118: 2 | M118: 202.5 | N118: 84.62 | O118: 77.77 | P118: 3
A119: 116 | B119: 平罗县教育体育局所属初中学校 | C119: 初中语文教师 | D119: 55029 | F119: 10 | G119: 刘鹏芳 | H119: 女 | I119: 汉族 | J119: 4264025501523 | K119: 195 | L119: 0 | M119: 195 | N119: 86.06 | O119: 77.64 | P119: 4
A120: 117 | B120: 平罗县教育体育局所属初中学校 | C120: 初中语文教师 | D120: 55029 | F120: 7 | G120: 周雪妮 | H120: 女 | I120: 汉族 | J120: 4264025501601 | K120: 197 | L120: 0 | M120: 197 | N120: 84.28 | O120: 76.83 | P120: 5
A121: 118 | B121: 平罗县教育体育局所属初中学校 | C121: 初中语文教师 | D121: 55029 | F121: 9 | G121: 谭诗蕾 | H121: 女 | I121: 汉族 | J121: 4264025500228 | K121: 195.5 | L121: 0 | M121: 195.5 | N121: 84.60 | O121: 76.83 | P121: 6
A122: 119 | B122: 平罗县教育体育局所属初中学校 | C122: 初中语文教师 | D122: 55029 | F122: 8 | G122: 王欣怡 | H122: 女 | I122: 汉族 | J122: 4264025501211 | K122: 196 | L122: 0 | M122: 196 | N122: 82.86 | O122: 75.85 | P122: 7
A123: 120 | B123: 平罗县教育体育局所属初中学校 | C123: 初中语文教师 | D123: 55029 | F123: 11 | G123: 王容容 | H123: 女 | I123: 回族 | J123: 4264025500227 | K123: 192 | L123: 2 | M123: 194 | N123: 82.34 | O123: 75.27 | P123: 8
A124: 121 | B124: 平罗县教育体育局所属初中学校 | C124: 初中语文教师 | D124: 55029 | F124: 3 | G124: 马茹惠 | H124: 女 | I124: 汉族 | J124: 4264025501105 | K124: 216 | L124: 0 | M124: 216 | N124: 77.18 | O124: 75.11 | P124: 9
A125: 122 | B125: 平罗县教育体育局所属初中学校 | C125: 初中语文教师 | D125: 55029 | F125: 18 | G125: 李银丽 | H125: 女 | I125: 汉族 | J125: 4264025501109 | K125: 185.5 | L125: 0 | M125: 185.5 | N125: 83.90 | O125: 75.07 | P125: 10
A126: 123 | B126: 平罗县教育体育局所属初中学校 | C126: 初中语文教师 | D126: 55029 | F126: 16 | G126: 谭蓉 | H126: 女 | I126: 汉族 | J126: 4264025500230 | K126: 187 | L126: 0 | M126: 187 | N126: 83.18 | O126: 74.84 | P126: 11
A127: 124 | B127: 平罗县教育体育局所属初中学校 | C127: 初中语文教师 | D127: 55029 | F127: 19 | G127: 余雯悦 | H127: 女 | I127: 汉族 | J127: 4264025501512 | K127: 181 | L127: 0 | M127: 181 | N127: 82.40 | O127: 73.57 | P127: 12
A128: 125 | B128: 平罗县教育体育局所属初中学校 | C128: 初中语文教师 | D128: 55029 | F128: 21 | G128: 田鑫 | H128: 女 | I128: 回族 | J128: 4264025501404 | K128: 178 | L128: 2 | M128: 180 | N128: 82.42 | O128: 73.45 | P128: 13
A129: 126 | B129: 平罗县教育体育局所属初中学校 | C129: 初中语文教师 | D129: 55029 | F129: 20 | G129: 邓春梅 | H129: 女 | I129: 汉族 | J129: 4264025501606 | K129: 180.5 | L129: 0 | M129: 180.5 | N129: 82.06 | O129: 73.30 | P129: 14
A130: 127 | B130: 平罗县教育体育局所属初中学校 | C130: 初中语文教师 | D130: 55029 | F130: 22 | G130: 马晶晶 | H130: 女 | I130: 回族 | J130: 4264025501413 | K130: 175.5 | L130: 2 | M130: 177.5 | N130: 81.40 | O130: 72.51 | P130: 15
A131: 128 | B131: 平罗县教育体育局所属初中学校 | C131: 初中语文教师 | D131: 55029 | F131: 14 | G131: 田燕 | H131: 女 | I131: 回族 | J131: 4264025501405 | K131: 186.5 | L131: 2 | M131: 188.5 | N131: 78.22 | O131: 72.07 | P131: 16
A132: 129 | B132: 平罗县教育体育局所属初中学校 | C132: 初中语文教师 | D132: 55029 | F132: 16 | G132: 王博 | H132: 女 | I132: 汉族 | J132: 4264025501107 | K132: 187 | L132: 0 | M132: 187 | N132: 78.16 | O132: 71.83 | P132: 17
A133: 130 | B133: 平罗县教育体育局所属初中学校 | C133: 初中语文教师 | D133: 55029 | F133: 6 | G133: 马春艳 | H133: 女 | I133: 回族 | J133: 4264025500924 | K133: 198 | L133: 2 | M133: 200 | N133: 75.26 | O133: 71.82 | P133: 18
A134: 131 | B134: 平罗县教育体育局所属初中学校 | C134: 初中语文教师 | D134: 55029 | F134: 13 | G134: 刘静 | H134: 女 | I134: 汉族 | J134: 4264025501318 | K134: 191.5 | L134: 0 | M134: 191.5 | N134: 74.14 | O134: 70.02 | P134: 19
A135: 132 | B135: 平罗县教育体育局所属初中学校 | C135: 初中语文教师 | D135: 55029 | F135: 1 | G135: 李建建 | H135: 女 | I135: 汉族 | J135: 4264025501128 | K135: 221 | L135: 0 | M135: 221 | N135: 缺考 | O135: =SUM(M135/3*40%) -> 29.47 | P135: 20
A136: 133 | B136: 平罗县教育体育局所属初中学校 | C136: 初中语文教师 | D136: 55029 | F136: 15 | G136: 李心茹 | H136: 女 | I136: 汉族 | J136: 4264025500630 | K136: 188 | L136: 0 | M136: 188 | N136: 缺考 | O136: =SUM(M136/3*40%) -> 25.07 | P136: 21
A137: 134 | B137: 平罗县教育体育局所属初中学校 | C137: 初中英语教师 | D137: 55030 | E137: 5 | F137: 1 | G137: 王婷婷 | H137: 女 | I137: 汉族 | J137: 4264025501527 | K137: 209 | L137: 0 | M137: 209 | N137: 86.70 | O137: =SUM(M137/3*40%)+N137*60% -> 79.89 | P137: 1
A138: 135 | B138: 平罗县教育体育局所属初中学校 | C138: 初中英语教师 | D138: 55030 | F138: 11 | G138: 邹娟 | H138: 女 | I138: 汉族 | J138: 4264025501114 | K138: 193 | L138: 0 | M138: 193 | N138: 88.30 | O138: 78.71 | P138: 2
A139: 136 | B139: 平罗县教育体育局所属初中学校 | C139: 初中英语教师 | D139: 55030 | F139: 5 | G139: 卢婧 | H139: 女 | I139: 汉族 | J139: 4264025501115 | K139: 198.5 | L139: 0 | M139: 198.5 | N139: 85.40 | O139: 77.71 | P139: 3
A140: 137 | B140: 平罗县教育体育局所属初中学校 | C140: 初中英语教师 | D140: 55030 | F140: 3 | G140: 杨阳 | H140: 女 | I140: 回族 | J140: 4264025501524 | K140: 203 | L140: 2 | M140: 205 | N140: 83.20 | O140: 77.25 | P140: 4
A141: 138 | B141: 平罗县教育体育局所属初中学校 | C141: 初中英语教师 | D141: 55030 | F141: 2 | G141: 马红红 | H141: 女 | I141: 回族 | J141: 4264025501417 | K141: 204 | L141: 2 | M141: 206 | N141: 82.80 | O141: 77.15 | P141: 5
A142: 139 | B142: 平罗县教育体育局所属初中学校 | C142: 初中英语教师 | D142: 55030 | F142: 8 | G142: 陈锦媛 | H142: 女 | I142: 汉族 | J142: 4264025500702 | K142: 197 | L142: 0 | M142: 197 | N142: 83.80 | O142: 76.55 | P142: 6
A143: 140 | B143: 平罗县教育体育局所属初中学校 | C143: 初中英语教师 | D143: 55030 | F143: 4 | G143: 辛龙霞 | H143: 女 | I143: 汉族 | J143: 4264025500206 | K143: 203 | L143: 0 | M143: 203 | N143: 82.20 | O143: 76.39 | P143: 7
A144: 141 | B144: 平罗县教育体育局所属初中学校 | C144: 初中英语教师 | D144: 55030 | F144: 8 | G144: 王原荣 | H144: 女 | I144: 汉族 | J144: 4264025501206 | K144: 197 | L144: 0 | M144: 197 | N144: 83.00 | O144: 76.07 | P144: 8
A145: 142 | B145: 平罗县教育体育局所属初中学校 | C145: 初中英语教师 | D145: 55030 | F145: 7 | G145: 曾佳华 | H145: 女 | I145: 汉族 | J145: 4264025501710 | K145: 198 | L145: 0 | M145: 198 | N145: 82.70 | O145: 76.02 | P145: 9
A146: 143 | B146: 平罗县教育体育局所属初中学校 | C146: 初中英语教师 | D146: 55030 | F146: 5 | G146: 李霞 | H146: 女 | I146: 回族 | J146: 4264025500229 | K146: 196.5 | L146: 2 | M146: 198.5 | N146: 81.60 | O146: 75.43 | P146: 10
A147: 144 | B147: 平罗县教育体育局所属初中学校 | C147: 初中英语教师 | D147: 55030 | F147: 15 | G147: 铁紫微 | H147: 女 | I147: 回族 | J147: 4264025500225 | K147: 187 | L147: 2 | M147: 189 | N147: 82.40 | O147: 74.64 | P147: 11
A148: 145 | B148: 平罗县教育体育局所属初中学校 | C148: 初中英语教师 | D148: 55030 | F148: 14 | G148: 张姗姗 | H148: 女 | I148: 汉族 | J148: 4264025501221 | K148: 189.5 | L148: 0 | M148: 189.5 | N148: 81.30 | O148: 74.05 | P148: 12
A149: 146 | B149: 平罗县教育体育局所属初中学校 | C149: 初中英语教师 | D149: 55030 | F149: 12 | G149: 吕佳欣 | H149: 女 | I149: 汉族 | J149: 4264025500803 | K149: 192 | L149: 0 | M149: 192 | N149: 79.60 | O149: 73.36 | P149: 13
A150: 147 | B150: 平罗县教育体育局所属初中学校 | C150: 初中英语教师 | D150: 55030 | F150: 12 | G150: 蔡邦玉 | H150: 女 | I150: 汉族 | J150: 4264025500521 | K150: 192 | L150: 0 | M150: 192 | N150: 78.20 | O150: 72.52 | P150: 14
A151: 148 | B151: 平罗县教育体育局所属初中学校 | C151: 初中英语教师 | D151: 55030 | F151: 10 | G151: 赵荣 | H151: 女 | I151: 汉族 | J151: 4264025501027 | K151: 193.5 | L151: 0 | M151: 193.5 | N151: 74.40 | O151: 70.44 | P151: 15
A152: 149 | B152: 平罗县教育体育局所属初中学校 | C152: 初中数学教师 | D152: 55031 | E152: 8 | F152: 6 | G152: 郑文杰 | H152: 男 | I152: 汉族 | J152: 4264025501326 | K152: 190 | L152: 0 | M152: 190 | N152: 90.00 | O152: 79.33 | P152: 1
A153: 150 | B153: 平罗县教育体育局所属初中学校 | C153: 初中数学教师 | D153: 55031 | F153: 1 | G153: 何路路 | H153: 女 | I153: 汉族 | J153: 4264025500302 | K153: 215.5 | L153: 0 | M153: 215.5 | N153: 82.20 | O153: 78.05 | P153: 2
A154: 151 | B154: 平罗县教育体育局所属初中学校 | C154: 初中数学教师 | D154: 55031 | F154: 2 | G154: 田彦贵 | H154: 男 | I154: 回族 | J154: 4264025501125 | K154: 200 | L154: 2 | M154: 202 | N154: 83.80 | O154: 77.21 | P154: 3
A155: 152 | B155: 平罗县教育体育局所属初中学校 | C155: 初中数学教师 | D155: 55031 | F155: 18 | G155: 杨锐 | H155: 女 | I155: 汉族 | J155: 4264025500527 | K155: 178 | L155: 0 | M155: 178 | N155: 88.60 | O155: 76.89 | P155: 4
A156: 153 | B156: 平罗县教育体育局所属初中学校 | C156: 初中数学教师 | D156: 55031 | F156: 9 | G156: 祁利琴 | H156: 女 | I156: 汉族 | J156: 4264025500729 | K156: 187.5 | L156: 0 | M156: 187.5 | N156: 86.00 | O156: 76.60 | P156: 5
A157: 154 | B157: 平罗县教育体育局所属初中学校 | C157: 初中数学教师 | D157: 55031 | F157: 7 | G157: 刘志远 | H157: 男 | I157: 汉族 | J157: 4264025501317 | K157: 188.5 | L157: 0 | M157: 188.5 | N157: 84.60 | O157: 75.89 | P157: 6
A158: 155 | B158: 平罗县教育体育局所属初中学校 | C158: 初中数学教师 | D158: 55031 | F158: 8 | G158: 韩剑菊 | H158: 女 | I158: 汉族 | J158: 4264025500126 | K158: 188 | L158: 0 | M158: 188 | N158: 84.40 | O158: 75.71 | P158: 7
A159: 156 | B159: 平罗县教育体育局所属初中学校 | C159: 初中数学教师 | D159: 55031 | F159: 26 | G159: 罗蓉 | H159: 女 | I159: 回族 | J159: 4264025501511 | K159: 165.5 | L159: 2 | M159: 167.5 | N159: 87.40 | O159: 74.77 | P159: 8
A160: 157 | B160: 平罗县教育体育局所属初中学校 | C160: 初中数学教师 | D160: 55031 | F160: 10 | G160: 杨艳茹 | H160: 女 | I160: 回族 | J160: 4264025500708 | K160: 183.5 | L160: 2 | M160: 185.5 | N160: 82.60 | O160: 74.29 | P160: 9
A161: 158 | B161: 平罗县教育体育局所属初中学校 | C161: 初中数学教师 | D161: 55031 | F161: 18 | G161: 杨花 | H161: 女 | I161: 回族 | J161: 4264025501216 | K161: 176 | L161: 2 | M161: 178 | N161: 82.40 | O161: 73.17 | P161: 10
A162: 159 | B162: 平罗县教育体育局所属初中学校 | C162: 初中数学教师 | D162: 55031 | F162: 17 | G162: 田可花 | H162: 女 | I162: 回族 | J162: 4264025500224 | K162: 176.5 | L162: 2 | M162: 178.5 | N162: 82.20 | O162: 73.12 | P162: 11
A163: 160 | B163: 平罗县教育体育局所属初中学校 | C163: 初中数学教师 | D163: 55031 | F163: 15 | G163: 韩菲菲 | H163: 女 | I163: 汉族 | J163: 4264025500827 | K163: 180 | L163: 0 | M163: 180 | N163: 80.60 | O163: 72.36 | P163: 12
A164: 161 | B164: 平罗县教育体育局所属初中学校 | C164: 初中数学教师 | D164: 55031 | F164: 5 | G164: 葛腾攀 | H164: 男 | I164: 汉族 | J164: 4264025500216 | K164: 192.5 | L164: 0 | M164: 192.5 | N164: 77.80 | O164: 72.35 | P164: 13
A165: 162 | B165: 平罗县教育体育局所属初中学校 | C165: 初中数学教师 | D165: 55031 | F165: 15 | G165: 焦晓丽 | H165: 女 | I165: 汉族 | J165: 4264025500907 | K165: 180 | L165: 0 | M165: 180 | N165: 79.60 | O165: 71.76 | P165: 14
A166: 163 | B166: 平罗县教育体育局所属初中学校 | C166: 初中数学教师 | D166: 55031 | F166: 2 | G166: 海廷富 | H166: 男 | I166: 回族 | J166: 4264025500318 | K166: 200 | L166: 2 | M166: 202 | N166: 74.60 | O166: 71.69 | P166: 15
A167: 164 | B167: 平罗县教育体育局所属初中学校 | C167: 初中数学教师 | D167: 55031 | F167: 14 | G167: 杨苹 | H167: 女 | I167: 汉族 | J167: 4264025500211 | K167: 180.5 | L167: 0 | M167: 180.5 | N167: 79.20 | O167: 71.59 | P167: 16
A168: 165 | B168: 平罗县教育体育局所属初中学校 | C168: 初中数学教师 | D168: 55031 | F168: 11 | G168: 田洋洋 | H168: 女 | I168: 回族 | J168: 4264025500427 | K168: 181 | L168: 2 | M168: 183 | N168: 76.60 | O168: 70.36 | P168: 17
A169: 166 | B169: 平罗县教育体育局所属初中学校 | C169: 初中数学教师 | D169: 55031 | F169: 22 | G169: 闫丽娜 | H169: 女 | I169: 汉族 | J169: 4264025500813 | K169: 172 | L169: 0 | M169: 172 | N169: 78.40 | O169: 69.97 | P169: 18
A170: 167 | B170: 平罗县教育体育局所属初中学校 | C170: 初中数学教师 | D170: 55031 | F170: 12 | G170: 郭正华 | H170: 男 | I170: 汉族 | J170: 4264025501707 | K170: 182.5 | L170: 0 | M170: 182.5 | N170: 76.00 | O170: 69.93 | P170: 19
A171: 168 | B171: 平罗县教育体育局所属初中学校 | C171: 初中数学教师 | D171: 55031 | F171: 4 | G171: 胡慧 | H171: 女 | I171: 汉族 | J171: 4264025501516 | K171: 199.5 | L171: 0 | M171: 199.5 | N171: 72.20 | O171: 69.92 | P171: 20
A172: 169 | B172: 平罗县教育体育局所属初中学校 | C172: 初中数学教师 | D172: 55031 | F172: 21 | G172: 邵子健 | H172: 男 | I172: 汉族 | J172: 4264025500308 | K172: 174 | L172: 0 | M172: 174 | N172: 76.40 | O172: 69.04 | P172: 21
A173: 170 | B173: 平罗县教育体育局所属初中学校 | C173: 初中数学教师 | D173: 55031 | F173: 18 | G173: 丁雪琴 | H173: 女 | I173: 回族 | J173: 4264025500606 | K173: 176 | L173: 2 | M173: 178 | N173: 缺考 | O173: =SUM(M173/3*40%) -> 23.73 | P173: 22
A174: 171 | B174: 平罗县教育体育局所属初中学校 | C174: 初中数学教师 | D174: 55031 | F174: 23 | G174: 郑芳霞 | H174: 女 | I174: 汉族 | J174: 4264025500628 | K174: 171 | L174: 0 | M174: 171 | N174: 缺考 | O174: =SUM(M174/3*40%) -> 22.80 | P174: 23
A175: 172 | B175: 平罗县教育体育局所属初中学校 | C175: 初中数学教师 | D175: 55031 | F175: 24 | G175: 袁江 | H175: 男 | I175: 回族 | J175: 4264025500215 | K175: 166 | L175: 2 | M175: 168 | N175: 缺考 | O175: =SUM(M175/3*40%) -> 22.40 | P175: 24
A176: 173 | B176: 平罗县教育体育局所属初中学校 | C176: 初中地理教师 | D176: 55032 | E176: 3 | F176: 1 | G176: 许佳佳 | H176: 女 | I176: 汉族 | J176: 4264025501026 | K176: 220 | L176: 0 | M176: 220 | N176: 88.80 | O176: =SUM(M176/3*40%)+N176*60% -> 82.61 | P176: 1
A177: 174 | B177: 平罗县教育体育局所属初中学校 | C177: 初中地理教师 | D177: 55032 | F177: 2 | G177: 史晨阳 | H177: 女 | I177: 汉族 | J177: 4264025501709 | K177: 217 | L177: 0 | M177: 217 | N177: 85.80 | O177: 80.41 | P177: 2
A178: 175 | B178: 平罗县教育体育局所属初中学校 | C178: 初中地理教师 | D178: 55032 | F178: 5 | G178: 黄心如 | H178: 女 | I178: 汉族 | J178: 4264025501025 | K178: 195 | L178: 0 | M178: 195 | N178: 81.00 | O178: 74.60 | P178: 3
A179: 176 | B179: 平罗县教育体育局所属初中学校 | C179: 初中地理教师 | D179: 55032 | F179: 4 | G179: 冯小玲 | H179: 女 | I179: 回族 | J179: 4264025501227 | K179: 196 | L179: 2 | M179: 198 | N179: 80.00 | O179: 74.40 | P179: 4
A180: 177 | B180: 平罗县教育体育局所属初中学校 | C180: 初中地理教师 | D180: 55032 | F180: 9 | G180: 赵蕊 | H180: 女 | I180: 藏族 | J180: 4264025500407 | K180: 182 | L180: 2 | M180: 184 | N180: 81.60 | O180: 73.49 | P180: 5
A181: 178 | B181: 平罗县教育体育局所属初中学校 | C181: 初中地理教师 | D181: 55032 | F181: 3 | G181: 权姣美 | H181: 女 | I181: 汉族 | J181: 4264025500208 | K181: 198.5 | L181: 0 | M181: 198.5 | N181: 77.80 | O181: 73.15 | P181: 6
A182: 179 | B182: 平罗县教育体育局所属初中学校 | C182: 初中地理教师 | D182: 55032 | F182: 8 | G182: 李晓璇 | H182: 女 | I182: 汉族 | J182: 4264025500718 | K182: 184.5 | L182: 0 | M182: 184.5 | N182: 78.80 | O182: 71.88 | P182: 7
A183: 180 | B183: 平罗县教育体育局所属初中学校 | C183: 初中地理教师 | D183: 55032 | F183: 7 | G183: 王适菊 | H183: 女 | I183: 回族 | J183: 4264025500324 | K183: 185 | L183: 2 | M183: 187 | N183: 76.60 | O183: 70.89 | P183: 8
A184: 181 | B184: 平罗县教育体育局所属初中学校 | C184: 初中地理教师 | D184: 55032 | F184: 6 | G184: 张玉婷 | H184: 女 | I184: 汉族 | J184: 4264025500129 | K184: 194 | L184: 0 | M184: 194 | N184: 74.20 | O184: 70.39 | P184: 9
A185: 182 | B185: 平罗县特殊教育学校 | C185: 初中信息技术教师 | D185: 55033 | E185: 1 | F185: 1 | G185: 李生花 | H185: 女 | I185: 回族 | J185: 4264025501704 | K185: 205 | L185: 2 | M185: 207 | N185: 83.20 | O185: 77.52 | P185: 1
A186: 183 | B186: 平罗县特殊教育学校 | C186: 初中信息技术教师 | D186: 55033 | F186: 3 | G186: 孟宪坤 | H186: 男 | I186: 汉族 | J186: 4264025501626 | K186: 201.5 | L186: 0 | M186: 201.5 | N186: 72.66 | O186: 70.46 | P186: 2
A187: 184 | B187: 平罗县特殊教育学校 | C187: 初中信息技术教师 | D187: 55033 | F187: 2 | G187: 张钰珠 | H187: 女 | I187: 汉族 | J187: 4264025501305 | K187: 203.5 | L187: 0 | M187: 203.5 | N187: 65.32 | O187: 66.33 | P187: 3
A188: 185 | B188: 平罗县城关第八小学 | C188: 小学数学教师 | D188: 55034 | E188: 1 | F188: 2 | G188: 李巧能 | H188: 女 | I188: 汉族 | J188: 4164025301319 | K188: 164.5 | L188: 0 | M188: 164.5 | N188: 87.80 | O188: 74.61 | P188: 1
A189: 186 | B189: 平罗县城关第八小学 | C189: 小学数学教师 | D189: 55034 | F189: 1 | G189: 杜文晨 | H189: 女 | I189: 汉族 | J189: 4164025301510 | K189: 172 | L189: 0 | M189: 172 | N189: 75.80 | O189: 68.41 | P189: 2
A190: 187 | B190: 平罗县城关第八小学 | C190: 小学数学教师 | D190: 55034 | F190: 3 | G190: 李元蓉 | H190: 女 | I190: 汉族 | J190: 4164025300516 | K190: 149.5 | L190: 0 | M190: 149.5 | N190: 76.60 | O190: 65.89 | P190: 3
A191: 188 | B191: 平罗县教育体育局所属小学 | C191: 小学数学教师 | D191: 55035 | E191: 10 | F191: 2 | G191: 杨佩佩 | H191: 女 | I191: 汉族 | J191: 4164025304612 | K191: 199 | L191: 0 | M191: 199 | N191: 86.80 | O191: 78.61 | P191: 1
A192: 189 | B192: 平罗县教育体育局所属小学 | C192: 小学数学教师 | D192: 55035 | F192: 13 | G192: 李琴琴 | H192: 女 | I192: 汉族 | J192: 4164025304105 | K192: 186.5 | L192: 0 | M192: 186.5 | N192: 89.10 | O192: 78.33 | P192: 2
A193: 190 | B193: 平罗县教育体育局所属小学 | C193: 小学数学教师 | D193: 55035 | F193: 20 | G193: 张甜 | H193: 女 | I193: 汉族 | J193: 4164025304918 | K193: 179 | L193: 0 | M193: 179 | N193: 89.60 | O193: 77.63 | P193: 3
A194: 191 | B194: 平罗县教育体育局所属小学 | C194: 小学数学教师 | D194: 55035 | F194: 7 | G194: 靳亚楠 | H194: 女 | I194: 汉族 | J194: 4164025303813 | K194: 190.5 | L194: 0 | M194: 190.5 | N194: 85.30 | O194: 76.58 | P194: 4
A195: 192 | B195: 平罗县教育体育局所属小学 | C195: 小学数学教师 | D195: 55035 | F195: 4 | G195: 张思马 | H195: 女 | I195: 回族 | J195: 4164025304422 | K195: 193.5 | L195: 2 | M195: 195.5 | N195: 84.10 | O195: 76.53 | P195: 5
A196: 193 | B196: 平罗县教育体育局所属小学 | C196: 小学数学教师 | D196: 55035 | F196: 3 | G196: 冯红伟 | H196: 女 | I196: 汉族 | J196: 4164025304727 | K196: 196.5 | L196: 0 | M196: 196.5 | N196: 83.60 | O196: 76.36 | P196: 6
A197: 194 | B197: 平罗县教育体育局所属小学 | C197: 小学数学教师 | D197: 55035 | F197: 15 | G197: 李潇潇 | H197: 女 | I197: 汉族 | J197: 4164025300127 | K197: 183.5 | L197: 0 | M197: 183.5 | N197: 86.10 | O197: 76.13 | P197: 7
A198: 195 | B198: 平罗县教育体育局所属小学 | C198: 小学数学教师 | D198: 55035 | F198: 11 | G198: 靳思雨 | H198: 女 | I198: 汉族 | J198: 4164025300826 | K198: 187 | L198: 0 | M198: 187 | N198: 85.20 | O198: 76.05 | P198: 8
A199: 196 | B199: 平罗县教育体育局所属小学 | C199: 小学数学教师 | D199: 55035 | F199: 1 | G199: 马文慧 | H199: 女 | I199: 回族 | J199: 4164025302807 | K199: 202 | L199: 2 | M199: 204 | N199: 78.80 | O199: 74.48 | P199: 9
A200: 197 | B200: 平罗县教育体育局所属小学 | C200: 小学数学教师 | D200: 55035 | F200: 18 | G200: 刘金凤 | H200: 女 | I200: 回族 | J200: 4164025302626 | K200: 178.5 | L200: 2 | M200: 180.5 | N200: 83.64 | O200: 74.25 | P200: 10
... 107 more rows
